Cogmind - Beta 15 @@@ ROGUE MODE // 2025.05.12 @ 14:42:38 Player: szymekc Result: Destroyed by UY-48R(R) with Subdweller Beam Cannon Performance ------------- Evolutions (0) 0 Regions Visited (3) 600 Robots Destroyed (19) 95 Value Destroyed (505) 505 Prototype IDs (0) 0 Alien Tech Used (0) 0 Bonus (35) 35 TOTAL SCORE: 1235 Bonus ------- Follower Combat Kills 35 Cogmind --------- Core Integrity 0/250 Matter 265/300 Energy 74/100 System Corruption 0% Temperature Cool (9) Movement Rolling (380) Ox20 Location -10/Subcaves Parts ------- > --- POWER (1) -------- (None) > --- PROPULSION (2) --- Wheel > --- UTILITY (2) ------ Humpback > --- WEAPON (2) ------- Subdweller Beam Cannon > --- INVENTORY (35) --- Subdweller Power Source Subdweller Power Source Light Treads Light Treads Spiked Treads Subdweller Monowheel Subdweller Monowheel Disposable Heat Sink Subdweller Optics Subdweller Optics Subdweller Optics Subdweller Optics Subdweller Optics Improved Terrain Scanner Makeshift Light Armor Plating Medium Laser Assault Rifle Battle Rifle Subdweller Machine Gun Subdweller Machine Gun Subdweller Machine Gun Barrage Gun Barrage Gun Battle Cannon Battle Cannon Scrap Shield Fragment (49) Scrap Shield Fragment (48) Scrap Shield Fragment (48) Scrap Shield Fragment (48) Scrap Shield Fragment (47) Scrap Shield Fragment (45) Scrap Shield Fragment (44) Scrap Shield Fragment (43) Scrap Shield Fragment (41) Scrap Shield Fragment (40) Peak State ------------ > --- POWER ------------ Subdweller Power Source > --- PROPULSION ------- Wheel Wheel > --- UTILITY ---------- Humpback > --- WEAPON ----------- Subdweller Beam Cannon Subdweller Machine Gun > --- INVENTORY -------- Subdweller Power Source Subdweller Power Source Light Treads Light Treads Spiked Treads Subdweller Monowheel Subdweller Monowheel Disposable Heat Sink Subdweller Optics Subdweller Optics Subdweller Optics Subdweller Optics Subdweller Optics Improved Terrain Scanner Makeshift Light Armor Plating Medium Laser Assault Rifle Battle Rifle Subdweller Machine Gun Subdweller Machine Gun Subdweller Machine Gun Barrage Gun Barrage Gun Battle Cannon Battle Cannon Scrap Shield Fragment Scrap Shield Fragment Scrap Shield Fragment Scrap Shield Fragment Scrap Shield Fragment Scrap Shield Fragment Scrap Shield Fragment Scrap Shield Fragment Scrap Shield Fragment Scrap Shield Fragment [Rating: 17] Favorites ----------- Power Ion Engine Engine Ion Engine Propulsion Wheel Treads Light Treads Wheel Wheel Utility Humpback Device Seismic Detector Storage Humpback Protection Makeshift Light Armor Plating Weapon Subdweller Beam Cannon Energy Cannon Subdweller Beam Cannon Ballistic Gun Assault Rifle Special Weapon Mining Laser Build | -11 -10 -10 -10 ------- Run | Yrd Mat Min Sub Slots Evolved . | . . . . Power . | . . . . Propulsion . | . . . . Utility . | . . . . Weapon . | . . . . Parts Attached 16 | 8 . 1 7 Power 3 | 2 . . 1 Engine 3 | 2 . . 1 Core . | . . . . Reactor . | . . . . Propulsion 4 | 2 . 1 1 Treads 2 | 2 . . . Leg . | . . . . Wheel 2 | . . 1 1 Hover . | . . . . Flight . | . . . . Utility 4 | 2 . . 2 Device 2 | 2 . . . Storage 1 | . . . 1 Processor . | . . . . Hackware . | . . . . Protection 1 | . . . 1 Artifact . | . . . . Weapon 5 | 2 . . 3 Energy Gun . | . . . . Energy Cannon 1 | . . . 1 Ballistic Gun 3 | 2 . . 1 Ballistic Cannon . | . . . . Launcher . | . . . . Special Weapon 1 | . . . 1 Impact Weapon . | . . . . Slashing Weapon . | . . . . Piercing Weapon . | . . . . Special Melee Weapon . | . . . . Unidentified Prototypes . | . . . . Parts Lost 7 | . . . 7 Power 3 | . . . 3 Propulsion 1 | . . . 1 Utility 1 | . . . 1 Weapon 2 | . . . 2 Highest Loss Streak 2 | . . . 2 To Critical Strikes . | . . . . Average Backups 12 | 2 4 4 16 Power 1 | . 1 1 1 Propulsion 2 | . 1 1 3 Utility 3 | . . . 5 Weapon 4 | . 2 2 6 Tool/Special . | . . . . Unused Backups 20 | . . . 20 Power 2 | . . . 2 Propulsion 3 | . . . 3 Utility 6 | . . . 6 Weapon 9 | . . . 9 Tool/Special . | . . . . Average Slot Usage (%) 88 | . 100 100 83 Engine 13 | . 14 14 13 Treads 8 | . 28 17 4 Wheel 19 | . . 10 23 Device 10 | . 28 28 3 Storage 8 | . . . 11 Energy Cannon 8 | . . . 12 Ballistic Gun 16 | . 28 28 11 Special Weapon 1 | . . . 1 Peak Build Rating 17 | 9 9 9 17 Average Rating 11 | 5 9 9 13 On Entrance 6 | . 9 9 9 Naked Turns . | . . . . Heaviest Build 217 | 10 10 10 217 Greatest Support 40 | 40 40 40 40 Greatest Overweight (x) 10 | . . . 10 Average Overweight (x) 3 | . . . 6 Largest Inventory Capacity 35 | 5 5 5 35 Average Capacity 21 | 5 5 5 30 Most Carried 35 | 4 4 5 35 Average Carried 16 | 2 4 4 23 Final Capacity 35 | 5 5 5 35 Final Carried 35 | 4 4 5 35 Class Distribution -------------------- 55% | Hauler-Mutant 44% | Mutant Dominant Class ---------------- Mutant | -10/Materials Mutant | -10/Mines Hauler-Mutant | -10/Subcaves Resources | -11 -10 -10 -10 ----------- Run | Yrd Mat Min Sub Matter Collected 589 | 316 . 30 243 Remotely . | . . . . Salvage Created 690 | 211 . 32 447 Parts 53 | 15 . 3 35 Haulers Intercepted . | . . . . Recyclers Shooed . | . . . . Parts Field Recycled . | . . . . Retrieved Matter . | . . . . Parts Self-Destructed 30 | . . . 30 Prevented . | . . . . Kills | -11 -10 -10 -10 ------- Run | Yrd Mat Min Sub Combat Hostiles Destroyed 10 | . . 1 9 Guns 1 | . . 1 . Cannons 8 | . . . 8 Classes Destroyed 7 | 3 . 1 3 Worker 2 | 2 . . . Tunneler 4 | 4 . . . Recycler 1 | 1 . . . Turret 2 | . . . 2 Grunt 1 | . . 1 . Sentry 1 | . . . 1 Subdweller 8 | . . . 8 Best Kill Streak 4 | 4 . 1 3 Combat Bots Only 3 | . . 1 3 Max Kills in Single Turn 1 | 1 . 1 1 Gunslinging . | . . . . Exploded . | . . . . Melee . | . . . . Uniques/NPCs Destroyed . | . . . . Combat | -11 -10 -10 -10 -------- Run | Yrd Mat Min Sub Hostile Shots Fired 131 | . . 7 124 Missed 49 | . . 1 48 Hits 82 | . . 6 76 Projectile 82 | . . 6 76 Critical Strikes 1 | . . . 1 Damage Taken 1079 | . . 70 1009 Core 255 | . . 49 206 Absorbed by Shields . | . . . . Core Remaining (%) 100 | 100 . . . Volleys Fired 63 | 9 . 5 49 Largest 2 | 2 . 2 2 Hottest 110 | 40 . 40 110 Shots Fired 93 | 18 . 10 65 Gun 44 | 18 . 10 16 Cannon 45 | . . . 45 Launcher . | . . . . Special 4 | . . . 4 Kinetic 44 | 18 . 10 16 Thermal 49 | . . . 49 Explosive . | . . . . Electromagnetic . | . . . . Robot Hit Streak 14 | 9 . 5 14 Robot Miss Streak 4 | 1 . 1 4 Penetration Max . | . . . . Secondary Targets . | . . . . Shots Hit Robots 61 | 11 . 8 42 Core Hits 23 | 9 . 2 12 Critical Kills 3 | 1 . . 2 Critical Parts Destroyed . | . . . . Critical Strikes 3 | 1 . . 2 Meltdown 2 | . . . 2 Destroy 1 | 1 . . . Melee Attacks . | . . . . Impact . | . . . . Slashing . | . . . . Piercing . | . . . . Sneak Attacks . | . . . . Combat Hostiles . | . . . . Follow-up Attacks . | . . . . Damage Inflicted 1310 | 116 . 80 1114 Guns 327 | 116 . 80 131 Cannons 983 | . . . 983 Explosions . | . . . . Melee . | . . . . Ramming . | . . . . Kinetic 327 | 116 . 80 131 Thermal 983 | . . . 983 Explosive . | . . . . Electromagnetic . | . . . . Impact . | . . . . Slashing . | . . . . Piercing . | . . . . Highest Corruption . | . . . . Average Corruption . | . . . . Corruption Purged . | . . . . Corruption Blocked . | . . . . Overload Shots . | . . . . Overflow Damage . | . . . . Projectiles . | . . . . Explosions . | . . . . Melee . | . . . . Knockbacks . | . . . . Impact . | . . . . Kinetic . | . . . . Secondary . | . . . . Self-Inflicted Damage . | . . . . Shots . | . . . . Rammed . | . . . . Targets Rammed . | . . . . Kicked . | . . . . Crushed . | . . . . Highest Temperature 80 | . . 12 80 Average Temperature 19 | . . 7 20 Received Heat Transfer 444 | . . 39 405 Siege Activations . | . . . . Martial Activations . | . . . . Shielding Activations . | . . . . Robots Disrupted . | . . . . Combat Hostiles . | . . . . Robots Corrupted . | . . . . Combat Hostiles . | . . . . Parts Fried . | . . . . Impact Corruptions . | . . . . Robots Melted 2 | . . . 2 Combat Hostiles 1 | . . . 1 Parts Melted 2 | . . . 2 Heat Transferred 1332 | . . . 1332 Parts Sabotaged . | . . . . Parts Stolen . | . . . . Parts Stripped . | . . . . Power Chain Reactions . | . . . . Alert | -11 -10 -10 -10 ------- Run | Yrd Mat Min Sub Maximum Alert Level . | . . . . Low Security (%) 100 | 100 100 100 . Level 1 . | . . . . Level 2 . | . . . . Level 3 . | . . . . Level 4 . | . . . . Level 5 . | . . . . High Security . | . . . . Max Security . | . . . . Peak Influence 46 | 15 30 46 . Initial 3 | . 3 3 . Average 5 | 3 9 5 . Influence Increases 301 | 35 30 116 120 Destroy 0b10 Robot/C 100 | . . 40 60 Destroy 0b10 Robot/NC 35 | 35 . . . Destroy Leader 10 | . . 10 . Allied During Kill 6 | . . 6 . Select Force Hacks 30 | . 30 . . Disable Machine 15 | . . 15 . Partial Spotted 15 | . . 15 . Lose Combat Pursuer 90 | . . 30 60 Influence Decreases 301 | 30 25 126 120 Entered New Map 9 | . 2 7 . Time Decay 240 | 30 23 84 103 Lost Part 17 | . . . 17 Lost Ally 35 | . . 35 . Squads Dispatched 1 | . 1 . . Investigation 1 | . 1 . . Extermination . | . . . . Reinforcement . | . . . . Assault . | . . . . Garrison . | . . . . Intercept . | . . . . Searches Triggered . | . . . . Construction Impeded . | . . . . Haulers Reinforced . | . . . . Active Scanning Responses . | . . . . Cargo Convoy Interrupts . | . . . . Stealth | -11 -10 -10 -10 --------- Run | Yrd Mat Min Sub Distress Signals . | . . . . Communications Jammed . | . . . . Distress Signals . | . . . . Times Spotted 20 | . . 4 16 Peak Tracking Total 6 | . . 2 6 Tactical Retreats 5 | . . 2 3 Traps | -11 -10 -10 -10 ------- Run | Yrd Mat Min Sub Traps Triggered 1 | . . . 1 Indirectly . | . . . . Trap Hack Attempts . | . . . . Triggered . | . . . . Disarmed . | . . . . Reprogrammed . | . . . . Reused . | . . . . Traps Extracted . | . . . . Installed . | . . . . Triggered . | . . . . Machines | -11 -10 -10 -10 ---------- Run | Yrd Mat Min Sub Machines Disabled 3 | . . 1 2 Max in Single Turn 1 | . . . 1 Machines Repaired . | . . . . Machines Dismantled . | . . . . Machines Sabotaged . | . . . . Overloaded Fab Kills . | . . . . Hacking | -11 -10 -10 -10 --------- Run | Yrd Mat Min Sub Machines Accessed 1 | . 1 . . Terminals . | . . . . Fabricators . | . . . . Repair Stations . | . . . . Recycling Units 1 | . 1 . . Scanalyzers . | . . . . Garrison Access . | . . . . Total Hacks 2 | . 2 . . Successful 1 | . 1 . . Failed 1 | . 1 . . Catastrophic . | . . . . Database Lockouts . | . . . . Manual 1 | . 1 . . Terminals . | . . . . Fabricators . | . . . . Repair Stations . | . . . . Recycling Units 2 | . 2 . . Scanalyzers . | . . . . Garrison Access . | . . . . Terminal Hacks . | . . . . Fabricator Hacks . | . . . . Repair Station Hacks . | . . . . Recycling Unit Hacks . | . . . . Scanalyzer . | . . . . Garrison Access Hacks . | . . . . Unauthorized Hacks 1 | . 1 . . Terminals . | . . . . Fabricators . | . . . . Repair Stations . | . . . . Recycling Units 1 | . 1 . . Tunnel 1 | . 1 . . Scanalyzers . | . . . . Garrison Access . | . . . . Data Cores Recovered . | . . . . Used . | . . . . Hacking Detections . | . . . . Full Trace Events . | . . . . Feedback Events . | . . . . Feedback Blocked . | . . . . Robot Schematics Acquired . | . . . . Robots Built . | . . . . Authchips . | . . . . Time . | . . . . Total Robot Build Rating . | . . . . Part Schematics Acquired . | . . . . Parts Built . | . . . . Authchips . | . . . . Time . | . . . . Total Part Build Rating . | . . . . Parts Repaired . | . . . . Time . | . . . . Parts Recycled . | . . . . Recycled Matter . | . . . . Retrieved Matter . | . . . . Retrieved Components . | . . . . Parts Scanalyzed . | . . . . Part Schematics Acquired . | . . . . Parts Damaged . | . . . . Bothacking | -11 -10 -10 -10 ------------ Run | Yrd Mat Min Sub Used RIF Installer . | . . . . Robots Hacked . | . . . . Non-combat . | . . . . Combat . | . . . . Robot Hacks Applied . | . . . . Relay Couplers Released . | . . . . Fabnet Peak Effective % . | . . . . Robots Rewired . | . . . . Allies Hacked . | . . . . Hacks Repelled . | . . . . Allies | -11 -10 -10 -10 -------- Run | Yrd Mat Min Sub Total Allies 3 | . . 3 . Largest Group 3 | . . 3 . Highest-Rated Group 40 | . . 40 . Highest-Rated Ally 16 | . . 16 . Total Orders . | . . . . Ally Attacks 14 | . . 14 . Total Damage 73 | . . 73 . Kills 1 | . . 1 . Allies Corrupted . | . . . . Allies Melted . | . . . . Intel | -11 -10 -10 -10 ------- Run | Yrd Mat Min Sub Active Infowar (turns) 841 | 51 81 520 189 Terrain 788 | 42 81 520 145 Seismic 841 | 51 81 520 189 Robot Analysis Total . | . . . . Derelict Logs Recovered 1 | . . 1 . Drone Launches . | . . . . Drone Recoveries . | . . . . Exploration | -11 -10 -10 -10 ------------- Run | Yrd Mat Min Sub Turns Passed 2232 | 157 81 520 1474 Spaces Moved 1131 | 76 48 373 634 Core 4 | 4 . . . Treads 192 | 72 48 63 9 Legs . | . . . . Wheels 935 | . . 310 625 Hover . | . . . . Flight . | . . . . Fastest Speed 50 | 50 160 80 80 Average Speed 150 | 154 160 93 183 Slowest Speed 240 | 160 160 160 240 Overloaded Moves . | . . . . Propulsion Burnouts . | . . . . Robots Hopped . | . . . . Potential Cave-ins . | . . . . Cave-ins Triggered . | . . . . Exploration Rate (%) 28 | 4 14 67 30 Regions Visited 3 Branch Regions 2 Pre-discovered Areas 2 | . 1 . 1 Known Exits Taken . | . . . . Unknown Exits Taken 3 | 1 1 1 . Scrap Searched 5 | . . . 5 Spaces Dug . | . . . . Terrain Destroyed 6 | . . . 6 Melee . | . . . . Projectile 6 | . . . 6 AOE . | . . . . Terrain Rammed . | . . . . Walls Destroyed . | . . . . Machines Disabled . | . . . . Actions | -11 -10 -10 -10 --------- Run | Yrd Mat Min Sub Total 1545 | 96 52 534 863 Wait 273 | . 5 155 113 Move 1128 | 75 47 372 634 Hop . | . . . . Pick Up 40 | 4 . 1 35 Fast Attach 9 | 6 . . 3 Attach 4 | 1 . . 3 Detach . | . . . . Swap 23 | 1 . 1 21 Drop 5 | . . . 5 Fire 63 | 9 . 5 49 Melee . | . . . . Ram . | . . . . Kick . | . . . . Crush . | . . . . Escape Stasis . | . . . . Rewire . | . . . . Trap . | . . . . Miscellaneous . | . . . . Route ------- -11/Scrapyard -10/Materials -10/Mines (discovered 2 exits: [*Mat] / [*Sub]) -10/Subcaves (discovered 1 exit: [*Rec]) History --------- Turn | Location | Event 10 | -11/Scrapyard | Discovered new exit (range 16) 158 | -11/Scrapyard | Entered Materials 182 | -10/Materials | Discovered new exit (range 15) 239 | -10/Materials | Entered Mines 244 | -10/Mines | Assisted by bots powering up and referring to "LRC-V3" 311 | -10/Mines | Build established: Mutant 342 | -10/Mines | Assembled infested the area 347 | -10/Mines | Assisted by a Guerilla fighting off Assembled 398 | -10/Mines | Lost 3 allies 598 | -10/Mines | Learned Materials terminal intel 717 | -10/Mines | Discovered new exit (range 8) 725 | -10/Mines | Discovered new exit (range 6) 759 | -10/Mines | Entered Subcaves 760 | -10/Subcaves | Approached by a straggling Scientist 806 | -10/Subcaves | Shifting Twisted Machinery released Sub. Power Source 814 | -10/Subcaves | Shifting Twisted Machinery released Sub. Power Source 834 | -10/Subcaves | Ambushed by Subdwellers from Twisted Machinery 895 | -10/Subcaves | Shifting Twisted Machinery released Mak. Light Armor Plating 1196 | -10/Subcaves | Core integrity fell below 50% 1218 | -10/Subcaves | Discovered new exit (range 15) 1220 | -10/Subcaves | Shifting Twisted Machinery released Sub. Machine Gun 1300 | -10/Subcaves | Build established: Hauler-Mutant 1615 | -10/Subcaves | Disturbed a concealed Subdweller 1858 | -10/Subcaves | Learned location of Zion (-6) 1858 | -10/Subcaves | Met a Zionite searching for "candidates" 1928 | -10/Subcaves | Core integrity fell below 20% 2233 | -10/Subcaves | Destroyed by UY-48R(R) with Subdweller Beam Cannon Last Messages --------------- 01927_ Critical hit (Impale). 01930_ Subatomizers dissect the Cobbler Unit. 01959_ Subatomizers dissect the Cobbler Unit, destroying it. 01972_ Sub. Power Source shoots sparks and powers down. 02075_ Acquired 9 matter. 02133_ Searching scrap... 02133_ Found Battle Cannon. 02133_ Found Spk. Treads. 02133_ Found 38 Matter. 02137_ Acquired Spk. Treads. 02140_ Acquired Battle Cannon. 02160_ Searching scrap... 02160_ Found Barrage Gun. 02160_ Found 30 Matter. 02164_ Dropped Lgt. Assault Rifle. 02164_ Acquired Barrage Gun. 02194_ Broken Sub. Power Source destroyed. 02195_ Sub. Machine Gun destroyed. 02208_ LB-93K(R) destroyed. 02233_ Wheel destroyed. Map ----- +----------------------------------------------------+ | ???????????????????????????????????????????? | | ???????????????????????????????????????????? | | ????????????????????????#??????????????????? | | ???????????????????????? ??????????????????? | | ???????????????????????? ?????????????????? | | ???????????????????????? ?????????????????? | | ????????????????????????# ?????????????????? | | ??????????????????????### ?????????????????? | | ??????????????????????? ?????????????????? | | ???????????????????????%& ?????????????????? | | ???????????????????????? ?????????????????? | | ???????????????????????? ##???????????????? | | ????????????????????????? ###?????????????? | | ????????????????????????? #?????????????? | | ?????????????????????????# #??????????????? | | ????????????????????????## ##?????????????? | | ?????????????????????####[& #?????????????? | | ?????????????????????#$#%# ##?????????????? | | ?????????????????????##*&### #?????????????? | | ????????????????????##&###??# #????????????? | | ???????????????????## ##?????# #???????????? | | ??????????????????## ##???????#????????????? | | ??????????????????# ##?????????????????????? | | ??????????????????# #??????????????????????? | | ??????????????????# #??????????????????????? | | ??????????????????#@####?????????#?????????? | | ?????????????????# #[#%##??????? #?????????? | | ?????????????????#### # #??????# ??????????? | | ????????????????????## ###???? ???????????? | | ?????????????????????##R%###?# ????????????? | | ??????????????????????# # #? #????????????? | | ??????????????????????### ## #????????????? | | ????????????????????????# # #?????????????? | | ???????????????????????# ## ##?????????????? | | ????????????????????????#?## ##????????????? | | ???????????????????????????## ##???????????? | | ????????????????????????????## ##??????????? | | ?????????????????????????????## ##?????????? | | ??????????????????????????????## #?#???????? | | ???????????????????????????????# ## #??????? | | ???????????????????????????????## #?#?????? | | ????????????????????????????????## ## #????? | | ????????????????????????????????#$# #?????? | | ????????????????????????????????#### #####?? | | ??????????????????????????????????# # ### | | ??????????????????????????????????# # | | ??????????????????????????????????# # | | ??????????????????????????????????###### # | | ???????????????????????????????????????# ## | | ???????????????????????????? ????????## ## | +----------------------------------------------------+ Best States ------------- Heat Dissipation 25 Energy Generation 15 Energy Capacity 250 Matter Stores 300 Matter Capacity 300 Sight Range 16 Terrain Scan Range 16 Terrain Scan Density 10 Armor Coverage 100 Evasion (%) 44 Recoil Reduction 2 Item Schematics ----------------- None Robot Schematics ------------------ None Fabricated ------------ Nothing Repaired ---------- Nothing Alien Tech Used ----------------- None Achievements -------------- None Challenges ------------ None Game ------ Seed ElectrostormSkeletonCorpse Manual? 0 Play Time 00:13:15 Cumulative 703.5 hours Start 2025.05.12 @ 14:32:10 End 2025.05.12 @ 14:42:38 Sessions 1 Manual Loads 0 Difficulty Rogue Special Mode None Game No. 237 Rogue 235 Adventurer 2 Explorer 0 Win Type - Total 38 Types 13/4/11/1/1/0/7/1/0/0 Lore% 94 Gallery% 91 Achievement% 82 Wizard Run 0 Options --------- Layout 0 ASCII 0 Keyboard 1 Movement Numpad Keybinds 0 Fullscreen 1 Font 24/Smallcaps Map View 76x50 Zoom Use 0% Tactical HUD 1 Map Filters NONE Filters NONE Steam 1 RUN: c4685cbd-199e-4a80-8b9d-9a3437f28845